fUST/lending_fUST_20250601
["ID","MTS","AMOUNT","RATE_DAILY","PERIOD"]
[363460075,1748730646181,-756.93,0.00019178,2]
[363460077,1748730646195,-430.0,0.00019178,2]
[363460079,1748730646205,-1150.71,0.00019178,2]
[363460082,1748730646215,-2064.37,0.00019178,2]
[363460084,1748730646225,-1844.58,0.00019178,2]
[363460086,1748730646235,-862.42,0.00019178,2]
[363460088,1748730646244,-543.5,0.00019178,2]
[363460090,1748730646253,-2240.38,0.00019178,2]
[363460092,1748730646263,-430.0,0.00019178,2]
[363460094,1748730646272,-430.0,0.00019178,2]
[363460096,1748730646282,-834.25,0.00019178,2]
[363460098,1748730646291,-430.0,0.00019178,2]
[363460100,1748730646301,-560.15,0.00019178,2]
[363460102,1748730646311,-250.0,0.00019178,2]
[363460104,1748730646320,-430.0,0.00019178,2]
[363460106,1748730646330,-430.0,0.00019178,2]
[363460108,1748730646339,-1019.38,0.00019178,2]
[363460110,1748730646349,-430.0,0.00019178,2]
[363460112,1748730646358,-613.55,0.00019178,2]
[363460114,1748730646368,-1337.64,0.00019178,2]
[363460116,1748730646378,-595.47,0.00019178,2]
[363460118,1748730646387,-1117.97,0.00019178,2]
[363460120,1748730646398,-543.17,0.00019178,2]
[363460122,1748730646407,-643.71,0.00019178,2]
[363460124,1748730646416,-756.36,0.00019178,2]
[363460126,1748730646426,-1349.5,0.00019178,2]
[363460128,1748730646436,-669.52,0.00019178,2]
[363460130,1748730646446,-264.715847,0.00019178,2]
[363460132,1748730646455,-173.123012,0.00019178,2]
[363460134,1748730646465,-151.5283339,0.0001926,2]
[363460136,1748730646474,-151.0,0.0001926,2]
[363460138,1748730646483,-151.0,0.00019287,2]
[363460140,1748730646493,-151.0,0.00019315,2]
[363460142,1748730646503,-151.0,0.00019329,2]
[363460144,1748730646513,-151.0,0.00019329,2]
[363460147,1748730646523,-151.0,0.00019329,2]
[363460149,1748730646533,-1275.485577,0.00019329,2]
[363460151,1748730646543,-1275.485577,0.00019329,2]
[363460153,1748730646552,-151.0,0.00019329,2]
[363460155,1748730646562,-186.0173,0.00019329,2]
[363460156,1748730646571,-683.400462,0.00019329,2]
[363460159,1748730646581,-186.0173,0.00019329,2]
[363460161,1748730646591,-683.400462,0.00019329,2]
[363460162,1748730646601,-151.0,0.00019329,2]
[363460164,1748730646610,-151.0,0.00019329,2]
[363460167,1748730646621,-30191.14888411,0.00019329,2]
[363460168,1748730646631,-202.57043117,0.00019342,2]
[363460170,1748730646640,-1115.8149587,0.00019383,2]
[363460172,1748730646649,-437.64,0.00019452,2]
[363460174,1748730646659,-826.59,0.00019452,2]
[363460176,1748730646669,-756.93,0.00019452,2]
[363460178,1748730646680,-430.0,0.00019452,2]
[363460180,1748730646690,-1150.71,0.00019452,2]
[363460183,1748730646700,-2064.37,0.00019452,2]
[363460185,1748730646710,-1844.58,0.00019452,2]
[363460186,1748730646720,-862.42,0.00019452,2]
[363460189,1748730646730,-543.5,0.00019452,2]
[363460190,1748730646739,-2240.38,0.00019452,2]
[363460192,1748730646749,-430.0,0.00019452,2]
[363460194,1748730646759,-430.0,0.00019452,2]
[363460196,1748730646769,-834.25,0.00019452,2]
[363460198,1748730646779,-559.52,0.00019452,2]
[363460200,1748730646789,-560.15,0.00019452,2]
[363460202,1748730646799,-430.0,0.00019452,2]
[363460204,1748730646809,-430.0,0.00019452,2]
[363460206,1748730646819,-1019.38,0.00019452,2]
[363460208,1748730646828,-430.0,0.00019452,2]
[363460211,1748730646838,-613.55,0.00019452,2]
[363460213,1748730646848,-1337.64,0.00019452,2]
[363460214,1748730646861,-595.47,0.00019452,2]
[363460216,1748730646870,-1117.97,0.00019452,2]
[363460218,1748730646879,-643.71,0.00019452,2]
[363460220,1748730646890,-756.36,0.00019452,2]
[363460222,1748730646900,-1349.5,0.00019452,2]
[363460224,1748730646910,-669.52,0.00019452,2]
[363460226,1748730646919,-8660.41,0.0001961,2]
[363460229,1748730646929,-1115.8149587,0.00019659,2]
[363460231,1748730646939,-1376.155556,0.00019719,2]
[363460233,1748730646948,-1376.155556,0.00019719,2]
[363460234,1748730646957,-260.805568,0.00019719,2]
[363460237,1748730646968,-260.805568,0.00019719,2]
[363460239,1748730646977,-437.64,0.00019726,2]
[363460241,1748730646986,-826.59,0.00019726,2]
[363460242,1748730646995,-756.93,0.00019726,2]
[363460244,1748730647005,-430.0,0.00019726,2]
[363460246,1748730647015,-1150.71,0.00019726,2]
[363460248,1748730647024,-2064.37,0.00019726,2]
[363460250,1748730647035,-1844.58,0.00019726,2]
[363460253,1748730647044,-862.42,0.00019726,2]
[363460254,1748730647054,-543.5,0.00019726,2]
[363460257,1748730647063,-2240.38,0.00019726,2]
[363460259,1748730647072,-519.25618381,0.00019726,2]
[363460261,1748730647082,-430.0,0.00019726,2]
[363460263,1748730647092,-834.25,0.00019726,2]
[363460265,1748730647101,-560.15,0.00019726,2]
[363460267,1748730647111,-430.0,0.00019726,2]
[363460268,1748730647119,-430.0,0.00019726,2]
[363460270,1748730647128,-1019.38,0.00019726,2]
[363460272,1748730647137,-430.0,0.00019726,2]
[363460274,1748730647147,-613.55,0.00019726,2]
[363460276,1748730647157,-1337.64,0.00019726,2]
[363460278,1748730647166,-595.47,0.00019726,2]
[363460280,1748730647176,-1117.97,0.00019726,2]
[363460282,1748730647186,-643.71,0.00019726,2]
[363460284,1748730647196,-756.36,0.00019726,2]
[363460287,1748730647208,-1349.5,0.00019726,2]
[363460288,1748730647218,-669.52,0.00019726,2]
[363460291,1748730647227,-379.845,0.00019727,2]
[363460293,1748730647237,-371.4387525,0.0001991,2]
[363460295,1748730647247,-1115.8149587,0.00019934,2]
[363460297,1748730647256,-700.0,0.00019964,2]
[363460299,1748730647265,-151.0,0.00019993,2]
[363460301,1748730647275,-151.0,0.00019993,2]
[363460303,1748730647284,-437.64,0.0002,2]
[363460305,1748730647293,-826.59,0.0002,2]
[363460307,1748730647303,-756.93,0.0002,2]
[363460309,1748730647312,-493.71,0.0002,2]
[363460311,1748730647321,-1150.71,0.0002,2]
[363460313,1748730647331,-2064.37,0.0002,2]
[363460315,1748730647341,-1844.58,0.0002,2]
[363460317,1748730647350,-862.42,0.0002,2]
[363460319,1748730647359,-543.5,0.0002,2]
[363460321,1748730647369,-2240.38,0.0002,2]
[363460323,1748730647378,-377.25,0.0002,2]
[363460325,1748730647387,-834.25,0.0002,2]
[363460327,1748730647396,-151.0,0.0002,2]
[363460328,1748730647406,-560.15,0.0002,2]
[363460329,1748730647416,-430.0,0.0002,2]
[363460330,1748730647426,-430.0,0.0002,2]
[363460331,1748730647435,-186.0173,0.0002,2]
[363460332,1748730647445,-683.400462,0.0002,2]
[363460333,1748730647455,-186.0173,0.0002,2]
[363460334,1748730647464,-683.400462,0.0002,2]
[363460335,1748730647474,-1019.38,0.0002,2]
[363460336,1748730647483,-430.0,0.0002,2]
[363460337,1748730647493,-613.55,0.0002,2]
[363460338,1748730647503,-1337.64,0.0002,2]
[363460339,1748730647512,-595.47,0.0002,2]
[363460340,1748730647521,-1117.97,0.0002,2]
[363460341,1748730647531,-151.0,0.0002,2]
[363460342,1748730647639,-151.0,0.0002,2]
[363460343,1748730647650,-643.71,0.0002,2]
[363460344,1748730647661,-756.36,0.0002,2]
[363460345,1748730647671,-1349.5,0.0002,2]
[363460347,1748730647680,-669.52,0.0002,2]
[363460349,1748730647690,-527.930528,0.00020187,2]
[363460351,1748730647700,-213.49308516,0.00020196,2]
[363460353,1748730647710,-1115.8149587,0.0002021,2]
[363460355,1748730647720,-151.0,0.00020267,2]
[363460357,1748730647730,-151.0,0.00020273,2]
[363460359,1748730647739,-258.955591,0.00020273,2]
[363460361,1748730647749,-205.717666,0.00020273,2]
[363460363,1748730647758,-205.717666,0.00020273,2]
[363460365,1748730647768,-579.810017,0.00020273,2]
[363460367,1748730647777,-579.810017,0.00020273,2]
[363460369,1748730647787,-151.0,0.00020273,2]
[363460371,1748730647796,-151.0,0.00020273,2]
[363460373,1748730647805,-174.328649,0.00020273,2]
[363460375,1748730647815,-437.64,0.00020273,2]
[363460377,1748730647825,-174.328649,0.00020273,2]
[363460379,1748730647835,-826.59,0.00020273,2]
[363460381,1748730647844,-756.93,0.00020273,2]
[363460383,1748730647855,-151.0,0.00020273,2]
[363460385,1748730647867,-1150.71,0.00020273,2]
[363460387,1748730647877,-2064.37,0.00020273,2]
[363460389,1748730647887,-1275.485577,0.00020273,2]
[363460391,1748730647897,-1275.485577,0.00020273,2]
[363460393,1748730647908,-1844.58,0.00020273,2]
[363460395,1748730647918,-862.42,0.00020273,2]
[363460397,1748730647929,-543.5,0.00020273,2]
[363460399,1748730647940,-2240.38,0.00020273,2]
[363460401,1748730647951,-834.25,0.00020273,2]
[363460403,1748730647961,-560.15,0.00020273,2]
[363460405,1748730647970,-430.0,0.00020273,2]
[363460407,1748730647979,-430.0,0.00020273,2]
[363460409,1748730647988,-1019.38,0.00020273,2]
[363460411,1748730647998,-430.0,0.00020273,2]
[363460413,1748730648007,-613.55,0.00020273,2]
[363460415,1748730648017,-1337.64,0.00020273,2]
[363460417,1748730648027,-595.47,0.00020273,2]
[363460419,1748730648037,-1117.97,0.00020273,2]
[363460421,1748730648047,-643.71,0.00020273,2]
[363460423,1748730648057,-756.36,0.00020273,2]
[363460425,1748730648067,-1349.5,0.00020273,2]
[363460427,1748730648077,-669.52,0.00020273,2]
[363460429,1748730648086,-240.0,0.00020274,3]
[363460431,1748730648096,-215.0738,0.00020286,2]
[363460433,1748730648107,-151.0,0.000203,3]
[363460435,1748730648117,-11547.21,0.00020463,2]
[363460437,1748730648127,-1115.8149587,0.00020486,3]
[363460439,1748730648137,-151.0,0.00020538,2]
[363460441,1748730648146,-151.0,0.00020538,2]
[363460443,1748730648156,-1376.155556,0.00020538,2]
[363460445,1748730648166,-1376.155556,0.00020538,2]
[363460447,1748730648176,-260.805568,0.00020538,2]
[363460449,1748730648187,-260.805568,0.00020538,2]
[363460451,1748730648196,-437.64,0.00020547,2]
[363460453,1748730648206,-756.93,0.00020547,2]
[363460455,1748730648217,-826.59,0.00020547,2]
[363460457,1748730648227,-1150.71,0.00020547,2]
[363460459,1748730648237,-2064.37,0.00020547,2]
[363460461,1748730648246,-1844.58,0.00020547,2]
[363460463,1748730648257,-862.42,0.00020547,2]
[363460465,1748730648267,-543.5,0.00020547,2]
[363460467,1748730648277,-2240.38,0.00020547,2]
[363460469,1748730648286,-834.25,0.00020547,2]
[363460471,1748730648296,-560.15,0.00020547,2]
[363460473,1748730648305,-430.0,0.00020547,2]
[363460475,1748730648315,-430.0,0.00020547,2]
[363460477,1748730648325,-1019.38,0.00020547,2]
[363460479,1748730648334,-430.0,0.00020547,2]
[363460481,1748730648344,-613.55,0.00020547,2]
[363460483,1748730648355,-1337.64,0.00020547,2]
[363460485,1748730648365,-595.47,0.00020547,2]
[363460487,1748730648375,-1117.97,0.00020547,2]
[363460489,1748730648386,-268.338768,0.00020547,2]
[363460491,1748730648396,-643.71,0.00020547,2]
[363460493,1748730648408,-756.36,0.00020547,2]
[363460495,1748730648419,-1349.5,0.00020547,2]
[363460497,1748730648429,-669.52,0.00020547,2]
[363460499,1748730648440,-8725.96,0.000206,2]
[363460501,1748730648451,-151.0,0.00020762,2]
[363460503,1748730648462,-1115.8149587,0.00020762,3]
[363460505,1748730648472,-6651.46392663,0.00020803,2]
[363460507,1748730648482,-186.0173,0.00020815,2]
[363460509,1748730648492,-683.400462,0.00020815,2]
[363460511,1748730648502,-186.0173,0.00020815,2]
[363460513,1748730648512,-683.400462,0.00020815,2]
[363460515,1748730648522,-437.64,0.00020821,2]
[363460517,1748730648532,-756.93,0.00020821,2]
[363460519,1748730648542,-826.59,0.00020821,2]
[363460521,1748730648552,-1150.71,0.00020821,2]
[363460523,1748730648563,-2064.37,0.00020821,2]
[363460525,1748730648572,-1844.58,0.00020821,2]
[363460527,1748730648582,-862.42,0.00020821,2]
[363460529,1748730648593,-543.5,0.00020821,2]
[363460531,1748730648603,-2240.38,0.00020821,2]
[363460533,1748730648613,-834.25,0.00020821,2]
[363460535,1748730648623,-560.15,0.00020821,2]
[363460537,1748730648633,-430.0,0.00020821,2]
[363460539,1748730648643,-430.0,0.00020821,2]
[363460541,1748730648654,-1019.38,0.00020821,2]
[363460543,1748730648664,-430.0,0.00020821,2]
[363460545,1748730648674,-613.55,0.00020821,2]
[363460547,1748730648684,-1337.64,0.00020821,2]
[363460549,1748730648694,-595.47,0.00020821,2]
[363460551,1748730648704,-1117.97,0.00020821,2]
[363460553,1748730648714,-643.71,0.00020821,2]
[363460555,1748730648724,-756.36,0.00020821,2]
[363460557,1748730648734,-669.52,0.00020821,2]
[363460559,1748730648744,-1349.5,0.00020821,2]
[363460561,1748730648753,-2227.0,0.00020893,2]
[363460563,1748730648763,-708.0,0.00020893,2]
[363460565,1748730648773,-491.976,0.00020893,2]
[363460567,1748730648783,-405.0,0.00020893,2]
[363460569,1748730648792,-962.0,0.00020893,2]
[363460571,1748730648802,-151.0,0.000209,3]
[363460573,1748730648812,-393.73142851,0.000209,2]
[363460575,1748730648822,-326247.58519,0.00020916,2]
[363460577,1748730648832,-16862.30949666,0.00020917,2]
[363460579,1748730648841,-901.376153,0.00020971,3]
[363460581,1748730648851,-1115.8149587,0.00021038,4]
[363460583,1748730648864,-700.0,0.0002106,2]
[363460585,1748730648874,-174.151448,0.00021095,2]
[363460587,1748730648883,-437.64,0.00021095,2]
[363460589,1748730648893,-756.93,0.00021095,2]
[363460591,1748730648902,-826.59,0.00021095,2]
[363460593,1748730648912,-1150.71,0.00021095,2]
[363460595,1748730648922,-2064.37,0.00021095,2]
[363460597,1748730648932,-1275.485577,0.00021095,2]
[363460599,1748730648942,-1275.485577,0.00021095,2]
[363460601,1748730648953,-1844.58,0.00021095,2]
[363460603,1748730648963,-862.42,0.00021095,2]
[363460605,1748730648972,-543.5,0.00021095,2]
[363460607,1748730648982,-2240.38,0.00021095,2]
[363460609,1748730648992,-834.25,0.00021095,2]
[363460612,1748730649002,-560.15,0.00021095,2]
[363460614,1748730649011,-487.4,0.00021095,2]
[363460615,1748730649021,-551.16,0.00021095,2]
[363460617,1748730649030,-1019.38,0.00021095,2]
[363460620,1748730649040,-430.0,0.00021095,2]
[363460621,1748730649049,-613.55,0.00021095,2]
[363460623,1748730649058,-1337.64,0.00021095,2]
[363460625,1748730649068,-595.47,0.00021095,2]
[363460627,1748730649078,-1117.97,0.00021095,2]
[363460629,1748730649087,-643.71,0.00021095,2]
[363460631,1748730649097,-756.36,0.00021095,2]
[363460633,1748730649106,-669.52,0.00021095,2]
[363460635,1748730649115,-1349.5,0.00021095,2]
[363460637,1748730649124,-500.0,0.00021158,2]
[363460639,1748730649134,-600.0,0.00021158,2]
[363460641,1748730649143,-500.0,0.00021158,2]
[363460643,1748730649154,-364.3142842,0.00021205,2]
[363460645,1748730649163,-364.3142842,0.00021205,2]
[363460647,1748730649172,-364.3142842,0.00021205,2]
[363460649,1748730649182,-1115.8149587,0.00021314,5]
[363460651,1748730649192,-14434.01,0.00021316,2]
[363460653,1748730649201,-151.0,0.00021363,2]
[363460655,1748730649210,-151.0,0.00021363,2]
[363460657,1748730649220,-151.0,0.00021369,2]
[363460659,1748730649231,-437.64,0.00021369,2]
[363460661,1748730649240,-756.93,0.00021369,2]
[363460663,1748730649250,-826.59,0.00021369,2]
[363460665,1748730649260,-1150.71,0.00021369,2]
[363460667,1748730649269,-2064.37,0.00021369,2]
[363460669,1748730649279,-1844.58,0.00021369,2]
[363460671,1748730649288,-862.42,0.00021369,2]
[363460673,1748730649298,-543.5,0.00021369,2]
[363460675,1748730649308,-2240.38,0.00021369,2]
[363460677,1748730649318,-834.25,0.00021369,2]
[363460679,1748730649328,-151.0,0.00021369,2]
[363460681,1748730649338,-560.15,0.00021369,2]
[363460683,1748730649348,-186.0173,0.00021369,2]
[363460685,1748730649358,-683.400462,0.00021369,2]
[363460687,1748730649367,-186.0173,0.00021369,2]
[363460689,1748730649377,-683.400462,0.00021369,2]
[363460691,1748730649387,-111.86869988,0.00021369,2]
[363460713,1748730649593,-907.51130012,0.00021369,2]
[363460715,1748730649603,-430.0,0.00021369,2]
[363460717,1748730649613,-613.55,0.00021369,2]
[363460719,1748730649623,-1337.64,0.00021369,2]
[363460721,1748730649633,-595.47,0.00021369,2]
[363460723,1748730649642,-1117.97,0.00021369,2]
[363460725,1748730649651,-643.71,0.00021369,2]
[363460727,1748730649662,-756.36,0.00021369,2]
[363460729,1748730649673,-1349.5,0.00021369,2]
[363460731,1748730649682,-669.52,0.00021369,2]
[363460733,1748730649692,-213.49308516,0.0002139,2]
[363460735,1748730649702,-151.0,0.000214,4]
[363460737,1748730649711,-1171.74011572,0.0002141,2]
[363460739,1748730649723,-1538.0126962,0.0002141,2]
[363460743,1748730649758,-290.24718808,0.0002141,2]
[363460746,1748730649768,-642.99756417,0.0002142,2]
[363460748,1748730649787,-340.365,0.0002142,2]
[363460751,1748730649798,-1948.46072737,0.0002142,2]
[363460753,1748730649810,-68.17670846,0.0002142,2]
[363460755,1748730649819,-1398.012903,0.0002143,2]
[363460757,1748730649831,-1313.59407189,0.0002143,2]
[363460769,1748730649937,-166.3572466,0.00015896,2]
[363460771,1748730649947,-430.0,0.00016438,2]
[363460773,1748730649957,-430.0,0.00016438,2]
[363460775,1748730649967,-445.52632558,0.00016438,2]
[363460777,1748730649977,-288.39302511,0.0002143,2]
[363460779,1748730649987,-1376.155556,0.0002143,2]
[363460781,1748730649996,-1376.155556,0.0002143,2]
[363460783,1748730650006,-260.805568,0.0002143,2]
[363460785,1748730650016,-260.805568,0.0002143,2]
[363460787,1748730650026,-151.0,0.00021437,2]
[363460789,1748730650035,-205.717666,0.00021437,2]
[363460791,1748730650045,-205.717666,0.00021437,2]
[363460793,1748730650055,-579.810017,0.00021437,2]
[363460794,1748730650064,-579.810017,0.00021437,2]
[363460795,1748730650073,-151.0,0.00021437,2]
[363460796,1748730650083,-174.328649,0.00021437,2]
[363460797,1748730650092,-174.328649,0.00021437,2]
[363460798,1748730650101,-158.046558,0.00021437,2]
[363460799,1748730650110,-3000.0,0.0002144,2]
[363460800,1748730650119,-424.072732,0.0002145,2]
[363460802,1748730650129,-424.072732,0.0002145,2]
[363460805,1748730650140,-3000.0,0.0002145,2]
[363460807,1748730650149,-1038.86734118,0.0002146,2]
[363460809,1748730650161,-1961.13265882,0.0002146,2]
[363460811,1748730650170,-238.86380627,0.0002147,2]
[363460813,1748730650182,-2761.13619373,0.0002147,2]
[363460815,1748730650192,-842.5625,0.0002148,3]
[363460817,1748730650201,-3000.0,0.0002148,2]
[363460819,1748730650210,-3000.0,0.0002149,2]
[363460821,1748730650220,-151.0,0.0002149,2]
[363460823,1748730650229,-151.0,0.0002149,2]
[363460825,1748730650238,-1275.485577,0.0002149,2]
[363460827,1748730650248,-1228.44334997,0.0002149,2]
[363460830,1748730650260,-47.04222703,0.0002149,2]
[363460832,1748730650269,-592.08380648,0.000215,2]
[363460834,1748730650280,-294.86741398,0.000215,2]
[363460836,1748730650291,-1649.36721682,0.000215,2]
[363460838,1748730650303,-463.68156272,0.000215,2]
[363460840,1748730650312,-151.0,0.000215,4]
[363460843,1748730650322,-2097.82091608,0.0002151,2]
[363460845,1748730650338,-807.18846441,0.0002151,2]
[363460847,1748730650350,-94.99061951,0.0002151,2]
[363460849,1748730650360,-3128.86271,0.0002152,2]
[363460851,1748730650370,-14.41077947,0.00021548,2]
[363460854,1748730650382,-706.58922053,0.00021548,2]
[363460856,1748730650391,-721.0,0.00021548,2]
[363460858,1748730650401,-721.0,0.00021548,2]
[363460860,1748730650411,-338.33621332,0.00021548,2]
[363460862,1748730650420,-151.0,0.0002158,2]
[363460864,1748730650430,-73.26521274,0.0002159,5]
[363462734,1748730669676,178.39544364,6.8e-07,2]
[363462749,1748730669820,178.39544364,6.8e-07,2]
[363463417,1748730970410,183.79749784,6.8e-07,2]
[363463418,1748730970510,183.79749784,6.8e-07,2]
[363463420,1748731053884,532.898162,0.00013699,2]
[363463425,1748731271131,179.64866649,6.8e-07,2]
[363463426,1748731271247,179.64866649,6.8e-07,2]
[363463444,1748731571965,176.94763939,6.8e-07,2]
[363463445,1748731572080,176.94763939,6.8e-07,2]
[363463447,1748731641140,-162.16695654,0.00016338,2]
[363463497,1748731832003,-414.1352946,0.00016386,2]
[363463499,1748731832013,-304.69563191,0.00016437,2]
[363463501,1748731832023,-500.0,0.00016437,2]
[363463503,1748731832033,-500.0,0.00016437,2]
[363463505,1748731832043,-500.0,0.00016437,2]
[363463507,1748731832053,-500.0,0.00016437,2]
[363463509,1748731832062,-500.0,0.00016437,2]
[363463511,1748731832072,-500.0,0.00016437,2]
[363463513,1748731832081,-500.0,0.00016437,2]
[363463515,1748731832090,-630.44950984,0.00016437,2]
[363463517,1748731832099,-500.0,0.00016437,2]
[363463519,1748731832109,-166.33956365,0.00016437,2]
[363463522,1748731832125,-333.66043635,0.00016437,2]
[363463524,1748731832135,-500.0,0.00016437,2]
[363463526,1748731832145,-500.0,0.00016437,2]
[363463528,1748731832155,-500.0,0.00016437,2]
[363463530,1748731832165,-500.0,0.00016437,2]
[363463532,1748731832174,-500.0,0.00016437,2]
[363463534,1748731832183,-650.0,0.00016437,2]
[363463536,1748731832193,-368.14577533,0.00016438,2]
[363463538,1748731832203,-430.0,0.00016438,2]
[363463540,1748731832213,-430.0,0.00016438,2]
[363463542,1748731832223,-430.0,0.00016438,2]
[363463544,1748731832232,-430.0,0.00016438,2]
[363463546,1748731832242,-430.0,0.00016438,2]
[363463548,1748731832251,-430.0,0.00016438,2]
[363463550,1748731832260,-430.0,0.00016438,2]
[363463552,1748731832269,-430.0,0.00016438,2]
[363463554,1748731832279,-430.0,0.00016438,2]
[363463556,1748731832289,-430.0,0.00016438,2]
[363463558,1748731832298,-430.0,0.00016438,2]
[363463560,1748731832309,-490.0,0.00016438,2]
[363463562,1748731832319,-430.0,0.00016438,2]
[363463564,1748731832328,-430.0,0.00016438,2]
[363463566,1748731832338,-430.0,0.00016438,2]
[363463568,1748731832347,-412.19491668,0.00016438,2]
[363463570,1748731832357,-490.0,0.00016438,2]
[363463572,1748731832367,-430.0,0.00016438,2]
[363463575,1748731832376,-430.0,0.00016438,2]
[363463577,1748731832387,-430.0,0.00016438,2]
[363463579,1748731832396,-430.0,0.00016438,2]
[363463581,1748731832406,-256.71,0.00016438,2]
[363463583,1748731832415,-430.0,0.00016438,2]
[363463585,1748731832424,-430.0,0.00016438,2]
[363463587,1748731832434,-466.07571363,0.00016438,2]
[363463589,1748731832443,-430.0,0.00016438,2]
[363463591,1748731832452,-430.0,0.00016438,2]
[363463593,1748731832462,-430.0,0.00016438,2]
[363463609,1748731832612,-430.0,0.00016438,2]
[363463611,1748731832623,-430.0,0.00016438,2]
[363463613,1748731832632,-1000.0,0.00016438,2]
[363463615,1748731832643,-430.0,0.00016438,2]
[363463617,1748731832653,-430.0,0.00016438,2]
[363463619,1748731832662,-430.0,0.00016438,2]
[363463621,1748731832671,-626.51,0.00016438,2]
[363463623,1748731832681,-430.0,0.00016438,2]
[363463625,1748731832691,-430.0,0.00016438,2]
[363463627,1748731832700,-430.0,0.00016438,2]
[363463629,1748731832712,-430.0,0.00016438,2]
[363463631,1748731832722,-430.0,0.00016438,2]
[363463633,1748731832736,-430.0,0.00016438,2]
[363463635,1748731832746,-430.0,0.00016438,2]
[363463637,1748731832755,-430.0,0.00016438,2]
[363463639,1748731832765,-430.0,0.00016438,2]
[363463641,1748731832774,-430.0,0.00016438,2]
[363463643,1748731832784,-430.0,0.00016438,2]
[363463645,1748731832794,-443.92309113,0.00016438,2]
[363463647,1748731832804,-430.0,0.00016438,2]
[363463649,1748731832814,-384.9620667,0.00016438,2]
[363463651,1748731832823,-500.0,0.00016438,2]
[363463653,1748731832833,-500.0,0.00016438,2]
[363463655,1748731832842,-500.0,0.00016438,2]
[363463657,1748731832851,-500.0,0.00016438,2]
[363463659,1748731832861,-500.0,0.00016438,2]
[363463661,1748731832870,-316.70111321,0.00016438,2]
[363463663,1748731832880,-430.0,0.00016438,2]
[363463665,1748731832890,-430.0,0.00016438,2]
[363463667,1748731832899,-430.0,0.00016438,2]
[363463669,1748731832908,-430.0,0.00016438,2]
[363463671,1748731832919,-430.0,0.00016438,2]
[363463673,1748731832928,-430.0,0.00016438,2]
[363463675,1748731832938,-430.0,0.00016438,2]
[363463677,1748731832948,-430.0,0.00016438,2]
[363463679,1748731832958,-430.0,0.00016438,2]
[363463681,1748731832967,-430.0,0.00016438,2]
[363463683,1748731832977,-430.0,0.00016438,2]
[363463685,1748731832986,-500.0,0.00016438,2]
[363463687,1748731832995,-440.0,0.00016438,2]
[363463689,1748731833005,-430.0,0.00016438,2]
[363463691,1748731833014,-430.0,0.00016438,2]
[363463693,1748731833024,-430.0,0.00016438,2]
[363463695,1748731833034,-402.51580347,0.00016438,2]
[363463697,1748731833043,-150.3466422,0.00016438,2]
[363463699,1748731833053,-400.0,0.00016438,2]
[363463701,1748731833063,-430.0,0.00016438,2]
[363463703,1748731833073,-430.0,0.00016438,2]
[363463705,1748731833082,-430.0,0.00016438,2]
[363463707,1748731833091,-430.0,0.00016438,2]
[363463709,1748731833100,-430.0,0.00016438,2]
[363463711,1748731833110,-430.0,0.00016438,2]
[363463713,1748731833120,-430.0,0.00016438,2]
[363463715,1748731833129,-430.0,0.00016438,2]